fUSD/lending_fUSD_20240327
["ID","MTS","AMOUNT","RATE_DAILY","PERIOD"]
[320731087,1711539094082,-500.0,0.00056438,120]
[320731088,1711539094092,-535.04,0.00056438,120]
[320731089,1711539094101,-930.48,0.00056438,120]
[320731090,1711539094111,-500.0,0.00056438,120]
[320731091,1711539094121,-500.0,0.00056438,120]
[320731092,1711539094130,-877.53,0.00056438,120]
[320731093,1711539094139,-2082.72,0.00056438,120]
[320731094,1711539094149,-500.0,0.00056438,120]
[320731095,1711539094158,-520.53,0.00056438,120]
[320731096,1711539094167,-500.0,0.00056438,120]
[320731097,1711539094177,-1016.45,0.00056438,120]
[320731098,1711539094187,-525.83,0.00056438,120]
[320731099,1711539094196,-500.0,0.00056438,120]
[320731100,1711539094205,-500.0,0.00056438,120]
[320731101,1711539094216,-500.0,0.00056438,120]
[320731102,1711539094225,-1436.62,0.00056438,120]
[320731103,1711539094234,-2558.6,0.00056438,120]
[320731104,1711539094243,-2044.63,0.00056438,120]
[320731105,1711539094255,-500.0,0.00056438,120]
[320731106,1711539094265,-545.88,0.00056438,120]
[320731107,1711539094274,-783.0,0.00056438,120]
[320731108,1711539094283,-3085.25,0.00056438,120]
[320731109,1711539094294,-500.0,0.00056438,120]
[320731110,1711539094303,-500.0,0.00056438,120]
[320731111,1711539094313,-839.83,0.00056438,120]
[320731112,1711539094323,-735.26,0.00056438,120]
[320731113,1711539094333,-3173.89,0.00056438,120]
[320731114,1711539094343,-1365.01,0.00056438,120]
[320731115,1711539094353,-1347.96,0.00056438,120]
[320731116,1711539094363,-500.0,0.00056438,120]
[320731117,1711539094372,-500.0,0.00056438,120]
[320731118,1711539094381,-5132.44,0.00056438,120]
[320731119,1711539094391,-558.52,0.00056438,120]
[320731120,1711539094399,-7133.78,0.00056438,120]
[320731121,1711539094408,-579.76,0.00056438,120]
[320731122,1711539094418,-500.0,0.00056438,120]
[320731123,1711539094428,-1944.43,0.00056438,120]
[320731124,1711539094438,-500.0,0.00056438,120]
[320731125,1711539094448,-6097.44,0.00056438,120]
[320731126,1711539094458,-5109.09,0.00056438,120]
[320731127,1711539094470,-545.62,0.00056438,120]
[320731128,1711539094479,-663.4,0.00056438,120]
[320731129,1711539094487,-500.0,0.00056438,120]
[320731130,1711539094497,-500.0,0.00056438,120]
[320731131,1711539094507,-22670.34,0.00056438,120]
[320731132,1711539094517,-2453.89,0.00056438,120]
[320731133,1711539094527,-500.0,0.00056438,120]
[320731134,1711539094537,-7956.37,0.00056438,120]
[320731135,1711539094546,-2612.82,0.00056438,120]
[320731136,1711539094556,-1096.81,0.00056438,120]
[320731137,1711539094566,-2520.37,0.00056438,120]
[320731138,1711539094575,-628.48,0.00056438,120]
[320731139,1711539094584,-1032.54,0.00056438,120]
[320731140,1711539094594,-500.0,0.00056438,120]
[320731141,1711539094604,-3753.0,0.00056438,120]
[320731142,1711539094613,-2884.81,0.00056438,120]
[320731143,1711539094623,-328.71,0.00056438,120]
[320731144,1711539094632,-5025.57,0.00056438,120]
[320731145,1711539094642,-9397.34,0.00056438,120]
[320731146,1711539094652,-43977.12,0.00056438,120]
[320731147,1711539094662,-500.0,0.00056438,120]
[320731148,1711539094672,-7954.08,0.00056438,120]
[320731149,1711539094682,-500.0,0.00056438,120]
[320731150,1711539094691,-500.0,0.00056438,120]
[320731151,1711539094700,-516.48,0.00056438,120]
[320731152,1711539094710,-832.53,0.00056438,120]
[320731153,1711539094720,-5423.8,0.00056438,120]
[320731154,1711539094729,-5589.81,0.00056438,120]
[320731155,1711539094738,-3477.52,0.00056438,120]
[320731156,1711539094748,-500.0,0.00056438,120]
[320731157,1711539094758,-3295.4,0.00056438,120]
[320731158,1711539094767,-500.0,0.00056438,120]
[320731159,1711539094777,-79143.13,0.00056438,120]
[320731160,1711539094787,-4233.1,0.00056438,120]
[320731161,1711539094797,-1554.43,0.00056438,120]
[320731162,1711539094808,-500.0,0.00056438,120]
[320731163,1711539094817,-21230.92,0.00056438,120]
[320731164,1711539094827,-1796.45,0.00056438,120]
[320731165,1711539094836,-1488.59,0.00056438,120]
[320731166,1711539094846,-1590.82,0.00056438,120]
[320731167,1711539094856,-4270.02,0.00056438,120]
[320731168,1711539094865,-1416.51,0.00056438,120]
[320731169,1711539094875,-1436.29,0.00056438,120]
[320731170,1711539094884,-500.0,0.00056438,120]
[320731171,1711539094894,-1000.0,0.00056438,14]
[320731172,1711539094903,-2733.23,0.00056438,120]
[320731173,1711539094913,-4828.26,0.00056438,120]
[320731174,1711539094924,-2699.02,0.00056438,120]
[320731175,1711539094933,-4103.23,0.00056438,120]
[320731176,1711539094942,-794.6,0.00056438,120]
[320731177,1711539094952,-2649.26,0.00056438,120]
[320731178,1711539094962,-500.0,0.00056438,120]
[320731179,1711539094972,-3406.52,0.00056438,120]
[320731180,1711539094982,-1067.47,0.00056438,120]
[320731181,1711539094991,-500.0,0.00056438,120]
[320731182,1711539095001,-1008.05,0.00056438,120]
[320731183,1711539095011,-532.43,0.00056438,120]
[320731184,1711539095022,-500.0,0.00056438,120]
[320731185,1711539095032,-3326.63,0.00056438,120]
[320731186,1711539095042,-949.03,0.00056438,120]
[320731187,1711539095052,-13832.31,0.00056438,120]
[320731188,1711539095063,-500.0,0.00056438,120]
[320731189,1711539095073,-5725.46,0.00056438,120]
[320731190,1711539095083,-1080.08,0.00056438,120]
[320731191,1711539095093,-638.55,0.00056438,120]
[320731192,1711539095104,-411.91,0.00056438,120]
[320731193,1711539095115,-532.1,0.00056438,120]
[320731194,1711539095126,-3178.59,0.00056438,120]
[320731195,1711539095137,-868.21,0.00056438,120]
[320731196,1711539095148,-1914.32,0.00056438,120]
[320731197,1711539095159,-5718.22,0.00056438,120]
[320731198,1711539095170,-500.0,0.00056438,120]
[320731199,1711539095181,-1510.54,0.00056438,120]
[320731200,1711539095192,-6090.95,0.00056438,120]
[320731201,1711539095202,-500.0,0.00056438,120]
[320731202,1711539095214,-2368.29,0.00056438,120]
[320731203,1711539095224,-1975.68,0.00056438,120]
[320731204,1711539095234,-2626.24,0.00056438,120]
[320731205,1711539095245,-826.27,0.00056438,120]
[320731206,1711539095255,-5971.8,0.00056438,120]
[320731207,1711539095269,-6306.66,0.00056438,120]
[320731208,1711539095280,-3796.34,0.00056438,120]
[320731209,1711539095290,-3897.67,0.00056438,120]
[320731210,1711539095302,-500.0,0.00056438,120]
[320731211,1711539095311,-2196.71,0.00056438,120]
[320731212,1711539095322,-1053.73,0.00056438,120]
[320731213,1711539095332,-500.0,0.00056438,7]
[320731214,1711539095343,-2509.66,0.00056438,120]
[320731215,1711539095353,-500.0,0.00056438,120]
[320731216,1711539095363,-2090.88,0.00056438,120]
[320731217,1711539095374,-500.0,0.00056438,120]
[320731218,1711539095385,-3728.83,0.00056438,120]
[320731219,1711539095395,-14051.88,0.00056438,120]
[320731220,1711539095405,-5336.71,0.00056438,120]
[320731221,1711539095416,-6046.1,0.00056438,120]
[320731222,1711539095427,-1400.16,0.00056438,120]
[320731223,1711539095438,-6749.09,0.00056438,120]
[320731224,1711539095449,-1020.49,0.00056438,120]
[320731225,1711539095459,-3525.02,0.00056438,120]
[320731226,1711539095473,-9670.8,0.00056438,120]
[320731227,1711539095484,-2244.9,0.00056438,120]
[320731228,1711539095495,-4278.93,0.00056438,120]
[320731229,1711539095506,-500.0,0.00056438,120]
[320731230,1711539095516,-5002.55,0.00056438,120]
[320731231,1711539095526,-500.0,0.00056438,120]
[320731232,1711539095537,-500.0,0.00056438,120]
[320731233,1711539095547,-5599.22,0.00056438,120]
[320731234,1711539095558,-1319.68,0.00056438,120]
[320731235,1711539095569,-4145.52,0.00056438,120]
[320731236,1711539095579,-1033.96,0.00056438,120]
[320731237,1711539095590,-8690.1,0.00056438,120]
[320731238,1711539095600,-759.99,0.00056438,120]
[320731239,1711539095611,-3689.75,0.00056438,120]
[320731240,1711539095622,-621.56,0.00056438,120]
[320731241,1711539095632,-938.28,0.00056438,120]
[320731242,1711539095643,-3289.32,0.00056438,120]
[320731243,1711539095654,-773.1,0.00056438,120]
[320731244,1711539095664,-8474.88,0.00056438,120]
[320731245,1711539095675,-670.41,0.00056438,120]
[320731246,1711539095685,-684.84,0.00056438,120]
[320731247,1711539095695,-991.15,0.00056438,120]
[320731248,1711539095705,-16950.66,0.00056438,120]
[320731249,1711539095717,-5480.38,0.00056438,120]
[320731250,1711539095728,-229.96,0.00056438,120]
[320731251,1711539095738,-3421.26,0.00056438,120]
[320731252,1711539095749,-649.49,0.00056438,120]
[320731253,1711539095759,-500.0,0.00056438,120]
[320731254,1711539095769,-1159.66,0.00056438,120]
[320731255,1711539095779,-2172.19,0.00056438,120]
[320731256,1711539095791,-2895.84,0.00056438,120]
[320731257,1711539095801,-20784.38,0.00056438,120]
[320731258,1711539095811,-2732.75,0.00056438,120]
[320731259,1711539095821,-17160.48,0.00056438,120]
[320731260,1711539095831,-4740.83,0.00056438,120]
[320731261,1711539095841,-672.63,0.00056438,120]
[320731262,1711539095852,-886.33,0.00056438,120]
[320731263,1711539095863,-6247.3,0.00056438,120]
[320731264,1711539095874,-5091.09,0.00056438,21]
[320731265,1711539095884,-500.0,0.00056438,120]
[320731266,1711539095895,-584.47,0.00056438,120]
[320731267,1711539095906,-8381.34,0.00056438,120]
[320731268,1711539095918,-4086.57,0.00056438,120]
[320731269,1711539095929,-2273.07,0.00056438,120]
[320731270,1711539095940,-2370.47,0.00056438,120]
[320731271,1711539095950,-19292.32,0.00056438,120]
[320731272,1711539095961,-2960.24,0.00056438,120]
[320731273,1711539095974,-1173.99,0.00056438,120]
[320731274,1711539095985,-500.0,0.00056438,120]
[320731275,1711539095996,-500.0,0.00056438,85]
[320731276,1711539096006,-2202.57,0.00056438,120]
[320731277,1711539096017,-12410.62,0.00056438,120]
[320731278,1711539096028,-3278.85,0.00056438,120]
[320731279,1711539096040,-8798.58,0.00056438,120]
[320731280,1711539096051,-876.94,0.00056438,120]
[320731281,1711539096062,-3583.19,0.00056438,120]
[320731282,1711539096074,-895.2,0.00056438,120]
[320731283,1711539096085,-500.0,0.00056438,120]
[320731284,1711539096096,-500.0,0.00056438,120]
[320731285,1711539096107,-500.0,0.00056438,120]
[320731286,1711539096117,-1845.88,0.00056438,120]
[320731287,1711539096128,-937.27,0.00056438,120]
[320731288,1711539096139,-1083.78,0.00056438,120]
[320731289,1711539096149,-3201.11,0.00056438,120]
[320731290,1711539096159,-2638.24,0.00056438,120]
[320731291,1711539096169,-1388.52,0.00056438,120]
[320731292,1711539096180,-4892.27,0.00056438,120]
[320731293,1711539096190,-2480.34,0.00056438,120]
[320731294,1711539096201,-1350.19,0.00056438,120]
[320731295,1711539096212,-3142.36,0.00056438,120]
[320731296,1711539096223,-2180.01,0.00056438,120]
[320731297,1711539096234,-1470.53,0.00056438,120]
[320731298,1711539096244,-500.0,0.00056438,120]
[320731299,1711539096256,-500.0,0.00056438,120]
[320731300,1711539096270,-500.0,0.00056438,120]
[320731301,1711539096281,-505.71,0.00056438,120]
[320731302,1711539096291,-1659.22,0.00056438,120]
[320731303,1711539096303,-8083.93,0.00056438,120]
[320731304,1711539096314,-500.0,0.00056438,120]
[320731305,1711539096325,-2931.63,0.00056438,120]
[320731306,1711539096337,-2901.36,0.00056438,120]
[320731307,1711539096348,-541.86,0.00056438,120]
[320731308,1711539096358,-4166.77,0.00056438,120]
[320731309,1711539096369,-3516.57,0.00056438,120]
[320731310,1711539096380,-10990.32,0.00056438,120]
[320731311,1711539096391,-1139.26,0.00056438,120]
[320731312,1711539096402,-686.73,0.00056438,120]
[320731313,1711539096412,-1716.32,0.00056438,120]
[320731314,1711539096423,-500.0,0.00056438,120]
[320731315,1711539096433,-2230.4,0.00056438,120]
[320731316,1711539096444,-1803.38,0.00056438,120]
[320731317,1711539096454,-2528.02,0.00056438,120]
[320731318,1711539096466,-250.0,0.000565,120]
[320731319,1711539096476,-1484.0,0.000565,30]
[320731320,1711539096486,-636.50981946,0.00056502,120]
[320731321,1711539096497,-1176.0,0.00056524,120]
[320731322,1711539096508,-537.0,0.00056524,120]
[320731323,1711539096518,-636.50981946,0.00056536,120]
[320731324,1711539096529,-224.0,0.00056592,30]
[320731325,1711539096539,-157.04179302,0.00056595,120]
[320731326,1711539096550,-10985.84684853,0.00056612,34]
[320731327,1711539096560,-186.66881899,0.00056653,108]
[320731328,1711539096571,-190.24451948,0.00056658,120]
[320731329,1711539096582,-511.0,0.00056685,120]
[320731330,1711539096592,-2000.0,0.00056712,120]
[320731331,1711539096602,-895.23,0.00056712,120]
[320731332,1711539096613,-575.28,0.00056712,120]
[320731333,1711539096624,-500.0,0.00056712,120]
[320731334,1711539096635,-500.0,0.00056712,120]
[320731335,1711539096646,-500.0,0.00056712,120]
[320731336,1711539096657,-500.0,0.00056712,120]
[320731337,1711539096668,-563.96,0.00056712,120]
[320731338,1711539096679,-500.0,0.00056712,120]
[320731339,1711539096689,-500.0,0.00056712,120]
[320731340,1711539096699,-500.0,0.00056712,120]
[320731341,1711539096710,-500.0,0.00056712,120]
[320731342,1711539096722,-500.0,0.00056712,120]
[320731343,1711539096733,-500.0,0.00056712,120]
[320731344,1711539096743,-362.04,0.00056712,120]
[320731345,1711539096754,-500.0,0.00056712,120]
[320731346,1711539096764,-609.66,0.00056712,120]
[320731347,1711539096775,-500.0,0.00056712,120]
[320731348,1711539096955,-500.0,0.00056712,120]
[320731349,1711539096966,-307.92,0.00056712,120]
[320731350,1711539096976,-976.2,0.00056712,120]
[320731351,1711539096986,-500.0,0.00056712,120]
[320731352,1711539096995,-500.0,0.00056712,120]
[320731353,1711539097005,-500.0,0.00056712,120]
[320731354,1711539097014,-531.34,0.00056712,120]
[320731355,1711539097024,-500.0,0.00056712,120]
[320731356,1711539097033,-305.32,0.00056712,120]
[320731357,1711539097043,-575.24,0.00056712,120]
[320731358,1711539097052,-500.0,0.00056712,120]
[320731359,1711539097061,-155.14,0.00056712,120]
[320731360,1711539097070,-500.0,0.00056712,120]
[320731361,1711539097079,-503.38,0.00056712,120]
[320731362,1711539097089,-500.0,0.00056712,120]
[320731363,1711539097098,-544.36,0.00056712,120]
[320731364,1711539097107,-656.62,0.00056712,120]
[320731365,1711539097116,-786.05,0.00056712,120]
[320731366,1711539097125,-1108.32,0.00056712,120]
[320731367,1711539097135,-500.0,0.00056712,120]
[320731368,1711539097145,-459.42,0.00056712,120]
[320731369,1711539097154,-500.0,0.00056712,120]
[320731370,1711539097164,-500.0,0.00056712,120]
[320731371,1711539097173,-500.0,0.00056712,120]
[320731372,1711539097183,-582.28,0.00056712,120]
[320731373,1711539097193,-327.01228065,0.00056712,120]
[320731374,1711539097202,-500.0,0.00056712,120]
[320731375,1711539097211,-500.0,0.00056712,120]
[320731376,1711539097220,-187.22,0.00056712,120]
[320731377,1711539097230,-500.0,0.00056712,120]
[320731378,1711539097239,-500.0,0.00056712,120]
[320731379,1711539097250,-500.0,0.00056712,120]
[320731380,1711539097260,-500.0,0.00056712,120]
[320731381,1711539097270,-500.0,0.00056712,120]
[320731382,1711539097279,-500.0,0.00056712,120]
[320731383,1711539097289,-500.0,0.00056712,120]
[320731384,1711539097299,-500.0,0.00056712,120]
[320731385,1711539097309,-500.0,0.00056712,120]
[320731386,1711539097319,-500.0,0.00056712,120]
[320731387,1711539097329,-500.0,0.00056712,120]
[320731388,1711539097340,-500.0,0.00056712,120]
[320731389,1711539097350,-650.65,0.00056712,120]
[320731390,1711539097360,-500.0,0.00056712,120]
[320731391,1711539097369,-500.0,0.00056712,120]
[320731392,1711539097378,-666.49,0.00056712,120]
[320731393,1711539097388,-500.0,0.00056712,120]
[320731394,1711539097397,-512.61,0.00056712,120]
[320731395,1711539097407,-500.0,0.00056712,120]
[320731396,1711539097416,-500.0,0.00056712,120]
[320731397,1711539097426,-500.0,0.00056712,120]
[320731398,1711539097436,-500.0,0.00056712,120]
[320731399,1711539097445,-500.0,0.00056712,120]
[320731400,1711539097455,-500.0,0.00056712,120]
[320731401,1711539097465,-500.0,0.00056712,120]
[320731402,1711539097477,-610.66,0.00056712,120]
[320731403,1711539097488,-544.48,0.00056712,120]
[320731404,1711539097498,-500.0,0.00056712,120]
[320731405,1711539097508,-500.0,0.00056712,120]
[320731406,1711539097518,-500.0,0.00056712,120]
[320731407,1711539097528,-1264.52,0.00056712,120]
[320731408,1711539097538,-564.14,0.00056712,120]
[320731409,1711539097548,-617.82,0.00056712,120]
[320731410,1711539097558,-832.09,0.00056712,120]
[320731411,1711539097567,-921.37,0.00056712,120]
[320731412,1711539097577,-695.47,0.00056712,120]
[320731413,1711539097588,-1458.74,0.00056712,120]
[320731414,1711539097597,-500.0,0.00056712,120]
[320731415,1711539097607,-1146.87,0.00056712,120]
[320731416,1711539097616,-500.0,0.00056712,120]
[320731417,1711539097626,-597.38,0.00056712,120]
[320731418,1711539097635,-2719.96,0.00056712,120]
[320731419,1711539097644,-500.0,0.00056712,120]
[320731420,1711539097654,-1170.95,0.00056712,120]
[320731421,1711539097663,-500.0,0.00056712,120]
[320731422,1711539097672,-500.0,0.00056712,120]
[320731423,1711539097682,-1986.6,0.00056712,120]
[320731424,1711539097692,-884.38,0.00056712,120]
[320731425,1711539097701,-1057.95,0.00056712,120]
[320731426,1711539097711,-605.76,0.00056712,120]
[320731427,1711539097723,-616.91,0.00056712,120]
[320731428,1711539097733,-533.04,0.00056712,120]
[320731429,1711539097742,-537.22,0.00056712,120]
[320731430,1711539097751,-702.45,0.00056712,120]
[320731431,1711539097761,-5471.51,0.00056712,120]
[320731432,1711539097770,-587.11,0.00056712,120]
[320731433,1711539097780,-500.0,0.00056712,120]
[320731434,1711539097790,-500.0,0.00056712,120]
[320731435,1711539097799,-500.0,0.00056712,120]
[320731436,1711539097809,-2128.3,0.00056712,120]
[320731437,1711539097818,-500.0,0.00056712,120]
[320731438,1711539097828,-500.0,0.00056712,120]
[320731439,1711539097838,-500.0,0.00056712,120]
[320731440,1711539097847,-961.96,0.00056712,120]
[320731441,1711539097856,-792.02,0.00056712,120]
[320731442,1711539097866,-613.31,0.00056712,120]
[320731443,1711539097875,-1258.8,0.00056712,120]
[320731444,1711539097885,-931.2,0.00056712,120]
[320731445,1711539097894,-663.5,0.00056712,120]
[320731446,1711539097903,-500.0,0.00056712,120]
[320731447,1711539097913,-1126.29,0.00056712,120]
[320731448,1711539097923,-905.93,0.00056712,120]
[320731449,1711539097932,-596.37,0.00056712,120]
[320731450,1711539097941,-500.0,0.00056712,120]
[320731451,1711539097951,-273.56,0.00056712,120]
[320731452,1711539097960,-1145.15,0.00056712,120]
[320731453,1711539097970,-1047.43,0.00056712,120]
[320731454,1711539097980,-500.0,0.00056712,120]
[320731455,1711539097989,-1079.19,0.00056712,120]
[320731456,1711539098000,-500.0,0.00056712,120]
[320731457,1711539098009,-500.0,0.00056712,120]
[320731458,1711539098018,-500.0,0.00056712,120]
[320731459,1711539098027,-500.0,0.00056712,120]
[320731460,1711539098037,-1050.1,0.00056712,120]
[320731461,1711539098047,-500.0,0.00056712,120]
[320731462,1711539098056,-668.88,0.00056712,120]
[320731463,1711539098065,-798.22,0.00056712,120]
[320731464,1711539098074,-500.0,0.00056712,120]
[320731465,1711539098083,-500.0,0.00056712,120]
[320731466,1711539098093,-865.88,0.00056712,120]
[320731467,1711539098103,-500.0,0.00056712,120]
[320731468,1711539098112,-500.0,0.00056712,120]
[320731469,1711539098122,-500.0,0.00056712,120]
[320731470,1711539098131,-805.48,0.00056712,120]
[320731471,1711539098141,-698.77,0.00056712,120]
[320731472,1711539098150,-895.29,0.00056712,120]
[320731473,1711539098160,-2904.63,0.00056712,120]
[320731474,1711539098169,-500.0,0.00056712,120]
[320731475,1711539098178,-575.0,0.00056712,120]
[320731476,1711539098188,-1059.6,0.00056712,120]
[320731477,1711539098198,-624.76,0.00056712,120]
[320731478,1711539098207,-566.16,0.00056712,120]
[320731479,1711539098217,-500.0,0.00056712,120]
[320731480,1711539098227,-500.0,0.00056712,120]
[320731481,1711539098236,-500.0,0.00056712,120]
[320731482,1711539098246,-596.27,0.00056712,120]
[320731483,1711539098255,-511.44,0.00056712,120]
[320731484,1711539098268,-500.0,0.00056712,120]
[320731485,1711539098278,-2461.83,0.00056712,120]
[320731486,1711539098288,-670.39,0.00056712,120]
[320731487,1711539098297,-500.0,0.00056712,120]
[320731488,1711539098309,-1096.84,0.00056712,120]
[320731489,1711539098319,-730.57,0.00056712,120]
[320731490,1711539098328,-526.24,0.00056712,120]
[320731491,1711539098338,-500.0,0.00056712,120]
[320731492,1711539098348,-813.47,0.00056712,120]
[320731493,1711539098358,-500.0,0.00056712,120]
[320731494,1711539098368,-982.22,0.00056712,120]
[320731495,1711539098377,-2323.15,0.00056712,120]
[320731496,1711539098387,-952.22,0.00056712,120]
[320731497,1711539098396,-1090.65,0.00056712,120]
[320731498,1711539098406,-2118.58,0.00056712,120]
[320731499,1711539098416,-819.74,0.00056712,120]
[320731500,1711539098425,-500.0,0.00056712,120]
[320731501,1711539098435,-500.0,0.00056712,120]
[320731502,1711539098444,-500.0,0.00056712,120]
[320731503,1711539098455,-500.0,0.00056712,120]
[320731504,1711539098465,-680.58,0.00056712,120]
[320731505,1711539098476,-1006.99,0.00056712,120]
[320731506,1711539098485,-249.12,0.00056712,120]
[320731507,1711539098494,-2012.56,0.00056712,120]
[320731508,1711539098503,-500.0,0.00056712,120]
[320731509,1711539098513,-525.09,0.00056712,120]
[320731510,1711539098523,-1027.05,0.00056712,120]
[320731511,1711539098532,-775.63,0.00056712,120]
[320731512,1711539098542,-909.15,0.00056712,120]
[320731513,1711539098551,-669.48,0.00056712,120]
[320731514,1711539098561,-2014.61,0.00056712,120]
[320731515,1711539098570,-500.0,0.00056712,120]
[320731516,1711539098580,-613.39,0.00056712,30]
[320731517,1711539098590,-500.0,0.00056712,120]
[320731518,1711539098599,-670.15,0.00056712,120]
[320731519,1711539098608,-500.0,0.00056712,120]
[320731520,1711539098617,-613.0,0.00056712,120]
[320731521,1711539098627,-500.0,0.00056712,120]
[320731522,1711539098636,-741.01,0.00056712,120]
[320731523,1711539098646,-715.82,0.00056712,120]
[320731524,1711539098655,-693.91,0.00056712,120]
[320731525,1711539098664,-500.0,0.00056712,120]
[320731526,1711539098674,-500.0,0.00056712,120]
[320731527,1711539098683,-1436.63,0.00056712,120]
[320731528,1711539098693,-788.63,0.00056712,120]
[320731529,1711539098703,-500.0,0.00056712,120]
[320731530,1711539098713,-470.59121067,0.00056712,120]
[320731531,1711539098723,-500.0,0.00056712,120]
[320731532,1711539098732,-852.33,0.00056712,120]
[320731533,1711539098742,-500.0,0.00056712,120]
[320731534,1711539098751,-648.9,0.00056712,120]
[320731535,1711539098760,-608.04,0.00056712,120]
[320731536,1711539098769,-500.0,0.00056712,120]
[320731537,1711539098779,-632.68,0.00056712,120]
[320731538,1711539098789,-500.0,0.00056712,120]
[320731539,1711539098799,-524.62,0.00056712,120]
[320731540,1711539098808,-620.43,0.00056712,120]
[320731541,1711539098817,-818.9,0.00056712,120]
[320731542,1711539098827,-2063.63,0.00056712,120]
[320731543,1711539098836,-1004.28,0.00056712,120]
[320731544,1711539098846,-2011.71,0.00056712,120]
[320731545,1711539098855,-807.51,0.00056712,120]
[320731546,1711539098865,-500.0,0.00056712,120]
[320731547,1711539098874,-500.0,0.00056712,120]
[320731548,1711539098883,-500.0,0.00056712,120]
[320731549,1711539098893,-324.46836154,0.00056712,120]
[320731550,1711539098903,-763.33,0.00056712,120]
[320731551,1711539098913,-755.18,0.00056712,120]
[320731552,1711539098922,-487.81,0.00056712,120]
[320731553,1711539098931,-500.0,0.00056712,120]
[320731554,1711539098941,-842.7,0.00056712,120]
[320731555,1711539098950,-713.05,0.00056712,120]
[320731556,1711539098959,-2308.15,0.00056712,120]
[320731557,1711539098969,-500.0,0.00056712,120]
[320731558,1711539098978,-500.0,0.00056712,120]
[320731559,1711539098987,-500.0,0.00056712,120]
[320731560,1711539098997,-500.0,0.00056712,120]
[320731561,1711539099005,-676.12,0.00056712,120]
[320731562,1711539099015,-624.42,0.00056712,120]
[320731563,1711539099025,-849.59,0.00056712,120]
[320731564,1711539099035,-500.0,0.00056712,120]
[320731565,1711539099045,-677.22,0.00056712,120]
[320731566,1711539099054,-573.08,0.00056712,120]
[320731567,1711539099064,-409.38,0.00056712,120]
[320731568,1711539099073,-500.0,0.00056712,120]
[320731569,1711539099083,-500.0,0.00056712,120]
[320731570,1711539099093,-800.48,0.00056712,120]
[320731571,1711539099103,-988.02,0.00056712,120]
[320731572,1711539099112,-500.0,0.00056712,120]
[320731573,1711539099122,-535.04,0.00056712,120]
[320731574,1711539099131,-930.48,0.00056712,120]
[320731575,1711539099140,-500.0,0.00056712,120]
[320731576,1711539099150,-500.0,0.00056712,120]
[320731577,1711539099159,-877.53,0.00056712,120]
[320731578,1711539099169,-2082.72,0.00056712,120]
[320731579,1711539099178,-500.0,0.00056712,120]
[320731580,1711539099187,-520.53,0.00056712,120]
[320731581,1711539099197,-500.0,0.00056712,120]
[320731582,1711539099206,-1016.45,0.00056712,120]
[320731583,1711539099216,-525.83,0.00056712,120]
[320731584,1711539099226,-500.0,0.00056712,120]
[320731585,1711539099234,-500.0,0.00056712,120]
[320731586,1711539099244,-500.0,0.00056712,120]